bitfinex/quotes_BTCUSD_20260127
["timestamp","ask_amount","ask_price","bid_price","bid_amount"]
[1769526814406,0.02275781,87958.0,87935.0,0.02249291]
[1769526814605,0.02275781,87958.0,87936.0,0.40171577]
[1769526815190,0.08895829,87976.0,87958.0,0.01]
[1769526815378,0.02275781,87982.0,87958.0,0.41179468]
[1769526815379,0.08895829,87979.0,87958.0,0.41179468]
[1769526815553,0.08895829,87985.0,87951.0,0.02346219]
[1769526815872,0.40579204,87991.0,87956.0,0.02346219]
[1769526816090,0.40579204,87991.0,87959.0,0.40179468]
[1769526816302,0.33937065,87980.0,87954.0,0.40179468]
[1769526816552,0.05683169,87980.0,87954.0,0.40179468]
[1769526816746,0.0568272,87987.0,87957.0,0.02346219]
[1769526816953,0.0568272,87987.0,87958.0,0.40179468]
[1769526817156,0.0568272,87987.0,87959.0,0.02346219]
[1769526817360,0.40579204,87989.0,87959.0,0.02346219]
[1769526817514,0.40579204,87989.0,87959.0,0.42525687]
[1769526817723,0.4626186,87988.0,87959.0,0.42525687]
[1769526818037,0.4626191,87987.0,87959.0,0.42525687]
[1769526818266,0.40579204,87987.0,87959.0,0.42525687]
[1769526818420,0.40579204,87986.0,87959.0,0.42525687]
[1769526818624,0.00013991,87991.0,87960.0,0.02346219]
[1769526818826,0.00013991,87991.0,87948.0,0.1168]
[1769526818827,0.00013991,87991.0,87963.0,0.40179468]
[1769526818992,0.00013991,87991.0,87964.0,0.02346219]
[1769526819196,0.40593195,87991.0,87964.0,0.02346219]
[1769526819524,0.47240718,87991.0,87964.0,0.02346219]
[1769526819710,0.40579204,87990.0,87964.0,0.02346219]
[1769526820579,0.06661514,87991.0,87950.0,0.22740127]
[1769526820580,0.00013991,87991.0,87967.0,0.02346219]
[1769526820926,0.00013991,87991.0,87950.0,0.43982525]
[1769526820927,0.00013991,87991.0,87969.0,0.02346219]
[1769526823359,0.08895829,88008.0,87975.0,0.05683402]
[1769526823585,0.13513425,88015.0,87975.0,0.00013991]
[1769526823586,0.08895829,88015.0,87975.0,0.00013991]
[1769526823811,0.40579204,88013.0,87976.0,0.02346219]
[1769526824050,0.40579204,88008.0,87976.0,0.05683313]
[1769526824272,0.40579204,88008.0,87976.0,0.02346219]
[1769526824485,0.33982525,88010.0,87976.0,0.02346219]
[1769526824690,0.40579204,88005.0,87976.0,0.02346219]
[1769526825327,0.40579204,88005.0,87977.0,0.40179468]
[1769526825534,0.40579204,88013.0,87978.0,0.40179468]
[1769526825756,0.11246399,88012.0,87982.0,0.40179468]
[1769526825968,0.11246399,88011.0,87985.0,0.02346219]
[1769526826180,0.11246399,88010.0,87987.0,0.02346219]
[1769526826406,0.46260185,88013.0,87987.0,0.02346219]
[1769526826407,0.00976965,88014.0,87987.0,0.02346219]
[1769526826621,0.40579204,88012.0,87987.0,0.02346219]
[1769526826828,0.40579204,88010.0,87987.0,0.02346219]
[1769526829202,0.02275781,88009.0,87987.0,0.02330248]
[1769526829531,0.40579204,88008.0,87987.0,0.02330248]
[1769526830358,0.33982525,88030.0,87988.0,0.02346219]
[1769526830560,0.00066531,88035.0,88001.0,0.40179468]
[1769526830771,0.00066531,88035.0,88004.0,0.02346219]
[1769526830971,0.00066531,88035.0,87973.0,0.1168]
[1769526830972,0.40645735,88035.0,88007.0,0.40179468]
[1769526831172,0.40645735,88035.0,87979.0,0.06261139]
[1769526831173,0.33982525,88020.0,87993.0,0.11676]
[1769526831400,0.40579204,88026.0,87996.0,0.02346219]
[1769526831595,0.02720379,88024.0,87999.0,0.40179468]
[1769526831822,0.05680462,88021.0,87999.0,0.40179468]
[1769526832020,0.46259598,88023.0,87999.0,0.40179468]
[1769526832195,0.40579204,88023.0,87999.0,0.42525687]
[1769526832401,0.4625983,88019.0,87997.0,0.02346219]
[1769526832640,0.33982525,88020.0,87991.0,0.40179468]
[1769526832846,0.40579204,88014.0,87979.0,0.02346219]
[1769526833044,0.46260152,88014.0,87982.0,0.40179468]
[1769526833209,0.40579204,88014.0,87984.0,0.40179468]
[1769526833410,0.46260118,88014.0,87987.0,0.02346219]
[1769526833610,0.33982525,88010.0,87987.0,0.02346219]
[1769526833819,0.40579204,87999.0,87965.0,0.02346219]
[1769526834023,0.40579204,87999.0,87968.0,0.40179468]
[1769526834278,0.40579204,87999.0,87971.0,0.02486172]
[1769526834519,0.40579204,87999.0,87975.0,0.02486172]
[1769526834806,0.02275781,88000.0,87971.0,0.4265213]
[1769526834807,0.46145244,87997.0,87971.0,0.4265213]
[1769526835012,0.33982525,87990.0,87957.0,0.4265213]
[1769526835217,0.46160287,87991.0,87954.0,0.05684734]
[1769526835218,0.46160287,87991.0,87960.0,0.02486172]
[1769526835465,0.46160287,87991.0,87964.0,0.02486172]
[1769526835598,0.46160287,87991.0,87966.0,0.02486172]
[1769526835804,0.46160287,87991.0,87966.0,0.45138302]
[1769526836008,0.36313089,88000.0,87968.0,0.4265213]
[1769526836208,0.33982525,88010.0,87972.0,0.4265213]
[1769526836412,0.08550082,88008.0,87975.0,0.02486172]
[1769526836618,0.05050943,88009.0,87978.0,0.4265213]
[1769526836828,0.05050943,88009.0,87982.0,0.4265213]
[1769526837033,0.43829723,88008.0,87983.0,0.02486172]
[1769526837477,0.05681372,88007.0,87983.0,0.02486172]
[1769526837638,0.0568144,88006.0,87983.0,0.02486172]
[1769526837863,0.02330564,88015.0,87985.0,0.02486172]
[1769526838043,0.0840132,88014.0,87989.0,0.02486172]
[1769526838248,0.0840132,88014.0,87990.0,0.45138302]
[1769526838249,0.02720379,88014.0,87990.0,0.45138302]
[1769526839125,0.02330564,88015.0,87990.0,0.45138302]
[1769526839515,0.02330564,88015.0,87992.0,0.4265213]
[1769526839688,0.08010808,88025.0,87995.0,0.02486172]
[1769526839881,0.08010808,88025.0,87998.0,0.4265213]
[1769526839882,0.10230437,88025.0,87998.0,0.4265213]
[1769526840127,0.02330564,88025.0,88000.0,0.4265213]
[1769526840459,0.02330564,88025.0,87980.0,0.33982525]
[1769526840460,0.11676,88026.0,88005.0,0.02486172]
[1769526840666,0.05680326,88024.0,88006.0,0.45138302]
[1769526840799,0.05680326,88024.0,87977.0,0.02728]
[1769526840800,0.33982525,88020.0,87935.0,0.02720379]
[1769526841142,0.01735633,88024.0,87935.0,0.02720379]
[1769526841143,0.02330564,88005.0,87975.0,0.4265213]
[1769526841297,0.02330564,88003.0,87975.0,0.4265213]
[1769526841497,0.02330564,88003.0,87977.0,0.4265213]
[1769526841700,0.05681881,88000.0,87977.0,0.4265213]
[1769526841901,0.43829723,87993.0,87957.0,0.4265213]
[1769526842121,0.46160287,87993.0,87961.0,0.4265213]
[1769526842325,0.02330564,87993.0,87965.0,0.02486172]
[1769526842530,0.02330564,87999.0,87968.0,0.4265213]
[1769526842703,0.05682059,87997.0,87971.0,0.02486172]
[1769526842930,0.49511782,87997.0,87972.0,0.45138302]
[1769526843132,0.05681886,87999.0,87972.0,0.45152293]
[1769526843337,0.0801245,87999.0,87972.0,0.45152293]
[1769526843544,0.05681978,87998.0,87972.0,0.45136322]
[1769526843723,0.02330564,87999.0,87972.0,0.45136322]
[1769526843904,0.02330564,88008.0,87974.0,0.4265213]
[1769526844104,0.02330564,88008.0,87978.0,0.4265213]
[1769526844303,0.02330564,88017.0,87984.0,0.05682813]
[1769526844560,0.02330564,88017.0,87972.0,0.00013991]
[1769526844561,0.11258811,88016.0,87975.0,0.02486172]
[1769526844717,0.02330564,88017.0,87987.0,0.02486172]
[1769526844919,0.02330564,88017.0,87989.0,0.02486172]
[1769526845143,0.02330564,88017.0,87990.0,0.45138302]
[1769526845408,0.11264158,88016.0,87992.0,0.4265213]
[1769526845587,0.02330564,88017.0,87994.0,0.4265213]
[1769526845970,0.02330564,88017.0,87995.0,0.02486172]
[1769526846514,0.08011321,88017.0,87995.0,0.02486172]
[1769526847135,0.22722905,88017.0,87990.0,0.4265213]
[1769526847296,0.11266848,88016.0,87994.0,0.4265213]
[1769526847484,0.05680774,88017.0,87996.0,0.4265213]
[1769526847678,0.05680714,88018.0,87996.0,0.4265213]
[1769526847880,0.16947615,88017.0,87996.0,0.4265213]
[1769526848081,0.43829723,88022.0,87996.0,0.4265213]
[1769526848308,0.43829723,88022.0,87974.0,0.22733915]
[1769526848309,0.05680978,88014.0,87970.0,0.33982525]
[1769526848488,0.05681264,88009.0,87976.0,0.02486172]
[1769526848683,0.43829723,88022.0,87980.0,0.4265213]
[1769526848890,0.1198,88061.0,87973.0,0.11676]
[1769526848891,0.00066531,88035.0,88023.0,0.4265213]
[1769526849117,0.00066531,88035.0,88013.0,0.02720379]
[1769526849118,0.02330564,88064.0,88035.0,0.4265213]
[1769526849288,0.02330564,88064.0,88019.0,0.4265213]
[1769526849289,0.43829723,88057.0,88019.0,0.4265213]
[1769526849522,0.46160287,88057.0,88022.0,0.02486172]
[1769526849669,0.46160287,88057.0,88024.0,0.02476172]
[1769526849871,0.46160287,88057.0,88025.0,0.02486172]
[1769526850123,0.46206934,88057.0,88026.0,0.43532841]
[1769526850323,0.51885117,88057.0,88026.0,0.46019013]
[1769526850596,0.43829723,88049.0,88026.0,0.00880711]
[1769526850803,0.02330564,88048.0,88016.0,0.4265213]
[1769526850973,0.02330564,88048.0,88017.0,0.02486172]
[1769526851335,0.02330564,88048.0,88019.0,0.02486172]
[1769526851534,0.02330564,88048.0,88020.0,0.45138302]
[1769526851742,0.02330564,88048.0,88021.0,0.0451383]
[1769526852140,0.00046647,88057.0,88024.0,0.4265213]
[1769526852342,0.58222102,88056.0,88025.0,0.02486172]
[1769526852548,0.55501723,88056.0,88026.0,0.02486172]
[1769526852806,0.55501723,88056.0,88028.0,0.02486172]
[1769526853007,0.55501723,88056.0,88011.0,0.06364237]
[1769526853008,0.55501723,88056.0,88030.0,0.02486172]
[1769526854118,0.55501723,88056.0,88030.0,0.45138302]
[1769526854311,0.55001723,88056.0,88030.0,0.45138302]
[1769526854807,0.55001723,88056.0,88012.0,0.22724117]
[1769526854808,0.11672,88056.0,88032.0,0.4265213]
[1769526854958,0.11672,88056.0,88035.0,0.02486172]
[1769526855158,0.11672,88056.0,88036.0,0.4265213]
[1769526857371,0.11672,88056.0,88036.0,0.42636159]
[1769526859081,0.02330564,88055.0,88036.0,0.42636159]
[1769526860088,0.02360684,88055.0,88036.0,0.42636159]
[1769526860525,0.02360684,88055.0,88036.0,0.46899775]
[1769526860929,0.02360684,88055.0,88036.0,0.46869775]
[1769526861132,0.08895829,88088.0,88036.0,0.04263616]
[1769526861308,0.08895829,88088.0,88000.0,0.36056125]
[1769526861309,0.02720379,88068.0,88028.0,0.4265213]
[1769526861507,0.02330564,88062.0,88028.0,0.48868891]
[1769526861713,0.02330564,88060.0,88028.0,0.48868891]
[1769526862496,0.02330564,88060.0,88034.0,0.05679581]
[1769526862696,0.02474365,88068.0,88040.0,0.34526961]
[1769526862939,0.02474365,88068.0,88041.0,0.50632244]
[1769526863935,0.03127252,88068.0,88041.0,0.50632244]
[1769526864136,0.50165357,88055.0,88035.0,0.01244078]
[1769526864382,0.03127252,88054.0,88029.0,0.52072631]
[1769526864736,0.03127252,88052.0,88029.0,0.52072631]
[1769526864941,0.03127252,88052.0,88026.0,0.06143152]
[1769526864942,0.33982525,88050.0,88026.0,0.06143152]
[1769526865141,0.03801877,88043.0,88026.0,0.06143152]
[1769526865564,0.03801877,88043.0,88016.0,0.52072631]
[1769526866727,0.03801877,88043.0,88016.0,0.5205666]
[1769526869276,0.03801877,88043.0,88020.0,0.33982525]
[1769526869475,0.03801877,88043.0,88021.0,0.57753062]
[1769526869676,0.03801877,88043.0,88010.0,0.40191181]
[1769526869677,0.03801877,88043.0,88023.0,0.52072631]
[1769526870717,0.33982525,88050.0,88022.0,0.05775306]
[1769526870933,0.49886942,88044.0,88012.0,0.57753672]
[1769526871075,0.33982525,88050.0,88012.0,0.52072631]
[1769526871076,0.11297828,88043.0,88012.0,0.52072631]
[1769526871281,0.03801882,88041.0,88014.0,0.52072631]
[1769526871734,0.03801882,88041.0,88010.0,0.40191181]
[1769526872037,0.03801882,88041.0,88014.0,0.5775354]
[1769526872336,0.03801882,88041.0,88014.0,0.52072631]
[1769526872536,0.00013982,88041.0,88013.0,0.52072631]
[1769526872694,0.00013982,88041.0,88018.0,0.05680627]
[1769526872895,0.00013982,88041.0,88019.0,0.52072631]
[1769526873098,0.00013982,88041.0,88021.0,0.52072631]
[1769526874136,0.02691459,88041.0,88021.0,0.52072631]
[1769526875281,0.49886942,88040.0,88020.0,0.05775339]
[1769526875497,0.49886942,88037.0,88013.0,0.52072631]
[1769526875716,0.02279527,88036.0,88013.0,0.52072631]
[1769526876145,0.02279527,88036.0,88016.0,0.01893895]
[1769526876363,0.02279527,88036.0,88017.0,0.52072631]
[1769526876591,0.02279527,88036.0,88018.0,0.05798564]
[1769526877058,0.02279527,88036.0,88019.0,0.52072631]
[1769526877591,0.02279527,88036.0,88018.0,0.05798564]
[1769526877789,0.00013982,88041.0,88011.0,0.04019118]
[1769526877790,0.02279527,88034.0,88011.0,0.04019118]
[1769526877994,0.02279527,88032.0,88009.0,0.52072631]
[1769526878598,0.02279527,88032.0,88010.0,0.00163842]
[1769526878802,0.02279527,88032.0,88011.0,0.52072631]
[1769526879070,0.52166469,88032.0,88009.0,0.52072631]
[1769526879190,0.52166469,88032.0,88011.0,0.52072631]
[1769526881031,0.52166469,88032.0,88012.0,0.0241859]
[1769526881207,0.52166469,88032.0,88012.0,0.52072631]
[1769526881423,0.52166469,88032.0,88013.0,0.0241859]
[1769526881625,0.52166469,88032.0,88014.0,0.0553033]
[1769526882595,0.00013982,88041.0,88014.0,0.0553033]
[1769526882812,0.49886942,88038.0,88016.0,0.52072631]
[1769526883016,0.49886942,88038.0,88018.0,0.0241859]
[1769526883840,0.52145644,88038.0,88018.0,0.0241859]
[1769526884085,0.49886942,88036.0,88018.0,0.0241859]
[1769526884286,0.05679613,88035.0,88009.0,0.52072631]
[1769526884461,0.05679802,88032.0,87997.0,0.52072631]
[1769526884657,0.02258702,88028.0,88000.0,0.0241859]
[1769526884883,0.49886942,88025.0,88003.0,0.52072631]
[1769526885092,0.49886942,88025.0,88001.0,0.00810066]
[1769526885093,0.49886942,88025.0,88006.0,0.0241859]
[1769526885934,0.11672,88031.0,88001.0,0.00810066]
[1769526885935,0.11672,88031.0,88008.0,0.0241859]
[1769526886098,0.61558942,88031.0,88010.0,0.0241859]
[1769526886302,0.49886942,88030.0,88011.0,0.05449122]
[1769526886507,0.49886942,88030.0,88011.0,0.05433151]
[1769526886707,0.50796279,88030.0,88010.0,0.0241859]
[1769526887103,9.666e-05,88029.0,88010.0,0.0241859]
[1769526887309,0.49886942,88028.0,88010.0,0.0241859]
[1769526895268,0.50346438,88028.0,88010.0,0.0241859]
[1769526895718,0.11672,88031.0,88013.0,0.55991978]
[1769526895886,0.11672,88031.0,88014.0,0.02368694]
[1769526896045,0.64801433,88031.0,88014.0,0.02368694]
[1769526897193,0.64801433,88031.0,87973.0,0.02728]
[1769526897194,0.01808951,88020.0,87996.0,0.02368694]
[1769526897392,0.53129433,88017.0,87997.0,0.05780946]
[1769526897689,0.53129433,88017.0,87998.0,0.02368694]
[1769526897690,0.11672,88016.0,87998.0,0.02368694]
[1769526897920,0.11672,88016.0,87999.0,0.02368694]
[1769526898099,0.11672,88016.0,88000.0,0.02368694]
[1769526898317,0.53129433,88035.0,88018.0,0.02368694]
[1769526898493,0.22950273,88034.0,88018.0,0.02368694]
[1769526898836,0.11278273,88033.0,88018.0,0.02368694]
[1769526899335,0.64407706,88033.0,88018.0,0.02368694]
[1769526899502,0.53129433,88033.0,88018.0,0.02368694]
[1769526899897,0.53129433,88033.0,88001.0,0.00814964]
[1769526900064,0.53129433,88029.0,88004.0,0.58360672]
[1769526900264,0.02470485,88026.0,88004.0,0.58360672]
[1769526900501,0.53129433,88023.0,87999.0,0.02368694]
[1769526900704,0.55599918,88021.0,88000.0,0.02368694]
[1769526900921,0.11672,88020.0,88001.0,0.58360672]
[1769526901124,0.02470485,88019.0,88002.0,0.55991978]
[1769526901338,0.02470485,88019.0,88002.0,0.58360672]
[1769526902152,0.11672,88018.0,88005.0,0.02368694]
[1769526902312,0.11672,88017.0,88008.0,0.55991978]
[1769526902499,0.11672,88017.0,88009.0,0.05599198]
[1769526902924,0.11672,88017.0,88003.0,0.55991978]
[1769526903124,0.11672,88017.0,87977.0,0.55991978]
[1769526903125,0.02470485,88014.0,87977.0,0.55991978]
[1769526903331,0.02470485,88009.0,87980.0,0.01324583]
[1769526903504,0.02470485,88007.0,87983.0,0.55991978]
[1769526903692,0.02470485,88007.0,87985.0,0.55991978]
[1769526903893,0.02470485,88007.0,87977.0,0.011672]
[1769526903894,0.02470485,88007.0,87986.0,0.01324583]
[1769526904111,0.11672,88007.0,87991.0,0.55991978]
[1769526904368,0.11672,88016.0,87996.0,0.55991978]
[1769526904577,0.02470485,88013.0,87996.0,0.55991978]
[1769526904745,0.02470485,88012.0,87996.0,0.55991978]
[1769526904907,0.08151575,88012.0,87996.0,0.55991978]
[1769526905105,0.02470485,88010.0,87991.0,0.00046647]
[1769526905315,0.53129433,88008.0,87991.0,0.00046647]
[1769526905520,0.05681044,88012.0,87991.0,0.00046647]
[1769526905521,0.02470485,88005.0,87991.0,0.00046647]
[1769526905907,0.02470485,88004.0,87991.0,0.00046647]
[1769526906494,0.11672,88015.0,88005.0,0.55991978]
[1769526906700,0.11672,88015.0,88006.0,0.05936067]
[1769526907337,0.53129433,88014.0,87995.0,0.02368694]
[1769526907531,0.55599918,88014.0,87996.0,0.55991978]
[1769526908272,0.02470485,88014.0,87996.0,0.55991978]
[1769526908499,0.02470485,88014.0,87996.0,0.58360672]
[1769526909725,0.11672,88015.0,87941.0,0.69072208]
[1769526909726,0.53129433,88007.0,87978.0,0.02368694]
[1769526909935,0.02720379,88009.0,87978.0,0.02368694]
[1769526909936,0.53129433,87996.0,87978.0,0.00013991]
[1769526910127,0.11672,87995.0,87978.0,0.00013991]
[1769526910336,0.02470485,87993.0,87979.0,0.55991978]
[1769526910500,0.11672,87997.0,87981.0,0.55991978]
[1769526910921,0.02470485,87996.0,87981.0,0.55991978]
[1769526912323,0.05681153,88011.0,87980.0,0.05743238]
[1769526912324,0.02470485,88021.0,87982.0,0.00976645]
[1769526912681,0.02470485,88019.0,87998.0,0.00976645]
[1769526912818,0.11672,88028.0,88007.0,0.55991978]
[1769526913023,0.02470485,88027.0,88007.0,0.55991978]
[1769526913221,0.53129433,88025.0,88001.0,0.56968623]
[1769526913439,0.53129433,88025.0,88001.0,0.05696862]
[1769526913646,0.53129433,88021.0,88001.0,0.05696862]
[1769526913876,0.02470485,88026.0,88002.0,0.55991978]
[1769526914180,0.02470485,88026.0,87970.0,0.1620334]
[1769526914181,0.53129433,88018.0,87991.0,0.55991978]
[1769526914516,0.53129433,88015.0,87991.0,0.55991978]
[1769526914729,0.02470485,88014.0,87992.0,0.62901033]
[1769526915114,0.00046647,88026.0,87994.0,0.05682205]
[1769526915321,0.00046647,88026.0,88012.0,0.55991978]
[1769526915513,0.00046647,88026.0,88012.0,0.58360672]
[1769526915857,0.00046647,88026.0,88014.0,0.55991978]
[1769526916033,0.53129433,88024.0,88001.0,0.55991978]
[1769526916214,0.02470485,88021.0,88001.0,0.55991978]
[1769526916417,0.05680472,88021.0,88001.0,0.55991978]
[1769526916600,0.02470485,88018.0,87990.0,0.55991978]
[1769526916802,0.02470485,88013.0,87991.0,0.05836067]
[1769526917006,0.53129433,88010.0,87991.0,0.05836067]
[1769526917336,0.02470485,88008.0,87986.0,0.05682674]
[1769526917539,0.02470485,88008.0,87987.0,0.55991978]
[1769526918475,0.11672,88015.0,87989.0,0.55991978]
[1769526918669,0.02470485,88014.0,87989.0,0.55991978]
[1769526919246,0.53129433,88012.0,87989.0,0.55991978]
[1769526919447,0.02470485,88011.0,87990.0,0.05836067]
[1769526920238,0.11672,88015.0,87991.0,0.55991978]
[1769526920473,0.11672,88015.0,87993.0,0.55991978]
[1769526920700,0.11672,88015.0,87996.0,0.02368694]
[1769526920850,0.11672,88015.0,87997.0,0.55991978]
[1769526921096,0.11672,88015.0,87998.0,0.05838575]
[1769526921308,0.02470485,88025.0,87999.0,0.55991978]
[1769526921505,0.02470485,88022.0,87999.0,0.55991978]
[1769526921729,0.11672,88021.0,87999.0,0.55991978]
[1769526921889,0.02720379,88019.0,88000.0,0.03941733]
[1769526922227,0.02470485,88013.0,87992.0,0.0002508]
[1769526922445,0.02470485,88013.0,87986.0,0.58360672]
[1769526922446,0.0246124,88018.0,87986.0,0.55991978]
[1769526922645,0.0246124,88000.0,87972.0,0.0003401]
[1769526922796,0.0246124,87992.0,87973.0,0.05631374]
[1769526923000,0.0246124,87991.0,87973.0,0.05631374]
[1769526923885,0.0246124,87991.0,87973.0,0.05645365]
[1769526925713,0.0246124,87991.0,87973.0,0.00013991]
[1769526926515,0.11676,87994.0,87975.0,0.022769]
[1769526926720,0.57260623,88017.0,87994.0,0.01]
[1769526926960,0.02441869,88013.0,87994.0,0.01]
[1769526927630,0.02441869,88013.0,87995.0,0.61704459]
[1769526927831,0.02441869,88030.0,87992.0,0.01876536]
[1769526928049,0.02441869,88028.0,87992.0,0.61704459]
[1769526928228,0.02441869,88028.0,87991.0,0.61704459]
[1769526928433,0.02441869,88028.0,87997.0,0.01876536]
[1769526928634,0.02441869,88028.0,88000.0,0.61704459]
[1769526929520,0.02441869,88028.0,88000.0,0.63981359]
[1769526930008,0.02488516,88028.0,88000.0,0.63981359]
[1769526930365,0.02488516,88028.0,88001.0,0.07565736]
[1769526930567,0.02488516,88028.0,88002.0,0.61704459]
[1769526930935,0.01988516,88028.0,88002.0,0.61704459]
[1769526932374,0.02441869,88027.0,88002.0,0.61704459]
[1769526932722,0.00046647,88028.0,88002.0,0.61704459]
[1769526932924,0.02441869,88023.0,88002.0,0.61704459]
[1769526933134,0.02441869,88023.0,88003.0,0.06170446]
[1769526933305,0.02441869,88023.0,88004.0,0.61704459]
[1769526933515,0.05679801,88032.0,88004.0,0.61704459]
[1769526933732,0.38395631,88030.0,88004.0,0.61704459]
[1769526933911,0.02441869,88027.0,88004.0,0.61704459]
[1769526934117,0.0001398,88032.0,88005.0,0.03601964]
[1769526934118,0.38395631,88024.0,88005.0,0.03601964]
[1769526934348,0.02441869,88022.0,88005.0,0.03601964]
[1769526935163,0.02441869,88020.0,88005.0,0.03601964]
[1769526935357,0.38395631,88018.0,88005.0,0.03601964]
[1769526935555,0.02734359,88032.0,87983.0,0.63374791]
[1769526935556,0.36417883,88014.0,87983.0,0.63374791]
[1769526935708,0.02441869,88011.0,87984.0,0.61704459]
[1769526936559,0.02441869,88011.0,87984.0,0.67387309]
[1769526936756,0.02441869,88011.0,87984.0,0.61704459]
[1769526936973,0.02441869,88010.0,87984.0,0.61704459]
[1769526937196,0.02441869,88010.0,87986.0,0.61704459]
[1769526937410,0.35922883,88008.0,87986.0,0.61704459]
[1769526937689,0.02441869,88007.0,87986.0,0.61704459]
[1769526940068,0.57260623,88031.0,88007.0,0.01]
[1769526940429,0.0001398,88032.0,88007.0,0.61704459]
[1769526940430,0.02441869,88026.0,88007.0,0.61704459]
[1769526940582,0.02441869,88026.0,88001.0,0.02120189]
[1769526940787,0.02441869,88026.0,88000.0,0.33959697]
[1769526940788,0.02455849,88032.0,88006.0,0.61704459]
[1769526940970,0.02455849,88032.0,88000.0,0.33959697]
[1769526941169,0.0003401,88043.0,88010.0,0.33959697]
[1769526941170,0.02475879,88043.0,88010.0,0.33959697]
[1769526941376,0.08477262,88056.0,88030.0,0.39639514]
[1769526941570,0.11672,88057.0,88036.0,0.61704459]
[1769526941778,0.02441869,88065.0,88032.0,0.022769]
[1769526942027,0.57226482,88067.0,88034.0,0.05679596]
[1769526942028,0.02475879,88064.0,88034.0,0.05679596]
[1769526942230,0.02475879,88064.0,88021.0,0.11672]
[1769526942231,0.02441869,88062.0,88035.0,0.61704459]
[1769526942441,0.0003401,88064.0,88035.0,0.61704459]
[1769526942442,0.57226482,88059.0,88035.0,0.61704459]
[1769526942584,0.02441869,88051.0,88026.0,0.139489]
[1769526942785,0.02441869,88049.0,88027.0,0.0139489]
[1769526943612,0.02441869,88049.0,88028.0,0.61704459]
[1769526943834,0.02441869,88063.0,88030.0,0.33959697]
[1769526944147,0.02441869,88063.0,88034.0,0.22718473]
[1769526944344,0.02441869,88063.0,88020.0,0.43959697]
[1769526944622,0.02441869,88063.0,88036.0,0.022769]
[1769526944849,0.02441869,88063.0,88037.0,0.63981359]
[1769526945611,0.02441869,88063.0,88037.0,0.61704459]
[1769526945813,0.02441869,88063.0,88040.0,0.022769]
[1769526946021,0.02441869,88063.0,88030.0,0.22719493]
[1769526946022,0.02455844,88063.0,88042.0,0.022769]
[1769526946262,0.02455844,88063.0,88020.0,0.1]
[1769526946263,0.02455844,88063.0,88020.0,0.33959697]
[1769526946451,0.02455844,88063.0,87989.0,1.1365008]
[1769526946452,7.898e-05,88042.0,88022.0,0.022769]
[1769526946651,7.898e-05,88042.0,88023.0,0.63981359]
[1769526948237,7.898e-05,88042.0,88024.0,0.022769]
[1769526948497,7.898e-05,88042.0,88025.0,0.63667392]
[1769526948985,7.898e-05,88042.0,88025.0,0.65944292]
[1769526949163,0.22744884,88064.0,88027.0,0.61704459]
[1769526949164,0.59668351,88057.0,88027.0,0.61704459]
[1769526949344,0.59702361,88064.0,88031.0,0.61704459]
[1769526949546,0.59702361,88064.0,88031.0,0.022769]
[1769526949747,0.57240457,88063.0,88032.0,0.022769]
[1769526950017,0.57240457,88063.0,88035.0,0.61704459]
[1769526950221,0.57240457,88063.0,88038.0,0.022769]
[1769526950372,0.57240457,88063.0,88020.0,0.43959697]
[1769526950373,0.00013975,88063.0,88039.0,0.63981359]
[1769526950540,0.00013975,88063.0,88040.0,0.022769]
[1769526950736,0.00013975,88063.0,88041.0,0.61704459]
[1769526950943,0.00013975,88063.0,88042.0,0.03592263]
[1769526951503,0.00013975,88063.0,88042.0,0.65296722]
[1769526952069,0.57226482,88061.0,88031.0,0.61704459]
[1769526952274,0.00013975,88063.0,88031.0,0.61704459]
[1769526952275,0.02441869,88058.0,88031.0,0.61704459]
[1769526952479,0.02441869,88055.0,88032.0,0.00113589]
[1769526952913,0.59668351,88054.0,88032.0,0.00113589]
[1769526953350,0.59668351,88054.0,87970.0,0.05695169]
[1769526953351,7.898e-05,88032.0,88006.0,0.05681391]
[1769526953509,7.898e-05,88032.0,87993.0,0.02728]
[1769526953510,0.47794311,88031.0,88009.0,0.05681179]
[1769526953879,0.02441869,88034.0,88006.0,0.67385859]
[1769526954056,0.02441869,88034.0,88007.0,0.0568136]
[1769526954259,0.02441869,88034.0,88009.0,0.02436525]
[1769526954556,0.08895829,88062.0,88012.0,0.25160548]
[1769526954767,0.11668,88049.0,88022.0,0.64619604]
[1769526955054,0.11668,88049.0,88024.0,0.62183079]
[1769526955375,0.11668,88049.0,88026.0,0.62183079]
[1769526955561,0.14025771,88049.0,88026.0,0.62183079]
[1769526955765,0.14025771,88049.0,88027.0,0.04672171]
[1769526956274,0.11668,88049.0,88027.0,0.04672171]
[1769526956478,0.11668,88049.0,88013.0,0.62183079]
[1769526956479,0.47794311,88048.0,88013.0,0.62183079]
[1769526956654,0.11668,88049.0,88013.0,0.62183079]
[1769526956655,0.02357771,88038.0,88013.0,0.62183079]
[1769526956836,0.47794311,88036.0,88013.0,0.62183079]
[1769526957034,0.02357771,88036.0,88013.0,0.62183079]
[1769526957237,0.02357771,88045.0,88013.0,0.02436525]
[1769526957442,0.11668,88049.0,88013.0,0.64619604]
[1769526957443,0.47794311,88042.0,88013.0,0.64619604]
[1769526957646,0.02357771,88041.0,88013.0,0.64619604]
[1769526957848,0.47794311,88040.0,88013.0,0.64619604]
[1769526958050,0.02357771,88038.0,88013.0,0.64619604]
[1769526959036,0.02357771,88038.0,88000.0,0.33959697]
[1769526959037,0.02357771,88036.0,88004.0,0.62183079]
[1769526959247,0.47794311,88033.0,88004.0,0.62183079]
[1769526959449,0.08399772,88038.0,88004.0,0.62183079]
[1769526959450,0.02357771,88030.0,88004.0,0.62183079]
[1769526959752,0.02357771,88028.0,88004.0,0.62183079]
[1769526959994,0.47794311,88028.0,88004.0,0.62183079]
[1769526960194,0.02357771,88026.0,87997.0,0.11672]
[1769526960402,0.02720379,88038.0,87997.0,0.11672]
[1769526960403,0.02357771,88024.0,87999.0,0.05681849]
[1769526960575,0.02357771,88024.0,88006.0,0.62183079]
[1769526960781,0.02357771,88024.0,88000.0,0.02436525]
[1769526960985,0.02365669,88009.0,87992.0,0.0003401]
[1769526961168,0.02357771,88007.0,87992.0,0.0003401]
[1769526961366,0.02357771,88005.0,87992.0,0.0003401]
[1769526961565,0.02357771,88005.0,87972.0,0.05717603]
[1769526961566,0.02357771,88002.0,87972.0,0.05717603]
[1769526961768,0.02357771,88002.0,87972.0,0.0003401]
[1769526962084,0.02357771,88002.0,87973.0,0.62183079]
[1769526962305,0.02357771,88000.0,87973.0,0.62183079]
[1769526962622,0.02357771,87998.0,87973.0,0.62183079]
[1769526963403,0.02357771,87998.0,87972.0,0.0003401]
[1769526963567,0.14392379,88006.0,87953.0,0.62183079]
[1769526963568,0.26708315,87985.0,87953.0,0.62183079]
[1769526963762,0.02357771,87984.0,87955.0,0.62183079]
[1769526963963,0.02357771,87984.0,87957.0,0.62183079]
[1769526964171,0.02357771,87984.0,87958.0,0.62296294]
[1769526964382,0.02357771,87984.0,87958.0,0.62183079]
[1769526965621,0.02357771,87984.0,87959.0,0.00701677]
[1769526965839,0.02357771,87984.0,87959.0,0.01952259]
[1769526966276,0.02357771,87984.0,87960.0,0.62183079]